bitfinex-derivatives/quotes_SOLF0:USTF0_20260203
["timestamp","ask_amount","ask_price","bid_price","bid_amount"]
[1770085291982,135.3427,103.54,103.48,11.580178]
[1770085292178,6.40454792,103.55,103.48,11.580178]
[1770085292380,8.7006,103.54,103.49,11.51903153]
[1770085292977,385.44,103.56,103.49,20.22363153]
[1770085293181,385.44,103.56,103.5,11.52222279]
[1770085294979,135.3129,103.57,103.5,11.52222279]
[1770085295887,520.7596,103.58,103.51,11.53066048]
[1770085296189,135.2996,103.58,103.51,11.53066048]
[1770085297289,8.699,103.56,103.51,11.53066048]
[1770085298591,8.6978,103.58,103.51,11.53066048]
[1770085298990,6.40454792,103.61,103.54,11.5416521]
[1770085299193,141.63894792,103.63,103.54,11.5416521]
[1770085299394,149.27537108,103.63,103.54,11.5416521]
[1770085299591,8.6946,103.62,103.56,11.5416521]
[1770085300197,8.6948,103.61,103.56,11.5416521]
[1770085300889,141.63894792,103.63,103.56,11.5416521]
[1770085301291,527.03894792,103.63,103.56,11.5416521]
[1770085301492,8.6947,103.61,103.56,11.5416521]
[1770085302396,2.38703509,103.6,103.56,11.5416521]
[1770085303191,8.6947,103.61,103.56,11.5416521]
[1770085303890,2.38703509,103.62,103.56,8.6985]
[1770085304095,2.38703509,103.62,103.57,11.61728092]
[1770085304899,11.08093509,103.62,103.57,11.61728092]
[1770085308602,11.08013509,103.63,103.57,20.31528092]
[1770085309004,11.08013509,103.63,103.58,11.70425805]
[1770085309203,2.38703509,103.64,103.59,11.70425805]
[1770085309395,2.38703509,103.66,103.59,11.70425805]
[1770085310306,8.6905,103.66,103.61,11.70426284]
[1770085311407,8.6905,103.66,103.61,20.39886284]
[1770085311802,11.07753509,103.66,103.61,11.70426284]
[1770085312403,11.07883509,103.65,103.61,11.70426284]
[1770085312606,2.38703509,103.63,103.58,11.65795705]
[1770085313308,11.07913509,103.64,103.59,11.63683998]
[1770085314112,8.693,103.63,103.59,11.63683998]
[1770085317216,11.08003509,103.63,103.59,11.63683998]
[1770085319009,8.6918,103.65,103.59,20.33303998]
[1770085319216,11.07883509,103.65,103.6,11.62001595]
[1770085320515,2.38703509,103.63,103.58,11.62001595]
[1770085320821,2.38703509,103.65,103.58,11.62001595]
[1770085321015,387.60703509,103.66,103.58,14.00705104]
[1770085321617,396.29813509,103.66,103.61,11.61973184]
[1770085321822,11.07813509,103.66,103.61,11.61973184]
[1770085322020,2.38703509,103.67,103.61,11.61973184]
[1770085323419,11.07743509,103.67,103.61,20.31353184]
[1770085324517,11.07743509,103.67,103.63,0.06102967]
[1770085325121,2.38703509,103.64,103.59,11.61403642]
[1770085325322,2.38703509,103.63,103.59,11.61403642]
[1770085325620,2.38703509,103.64,103.59,11.61403642]
[1770085325819,2.38703509,103.63,103.59,11.61403642]
[1770085326317,2.38703509,103.63,103.59,20.31023642]
[1770085326517,2.3857002,103.63,103.59,20.31023642]
[1770085326721,2.3857002,103.63,103.59,11.61403642]
[1770085327426,2.3857002,103.61,103.57,11.65666837]
[1770085328125,2.3857002,103.6,103.57,11.65666837]
[1770085328517,2.3857002,103.63,103.57,11.65666837]
[1770085328921,2.3857002,103.64,103.57,11.65666837]
[1770085329227,2.3857002,103.63,103.57,11.65666837]
[1770085329428,11.0788002,103.63,103.58,19.16353667]
[1770085331728,11.0788002,103.63,103.56,2.3857002]
[1770085331729,2.3857002,103.64,103.6,10.49567153]
[1770085335032,11.0810002,103.61,103.55,8.6988]
[1770085335328,2.3857002,103.58,103.55,10.59306508]
[1770085335521,2.3857002,103.56,103.52,10.59306508]
[1770085336426,8.6972,103.58,103.52,10.59306508]
[1770085338333,8.6963,103.6,103.53,10.58268934]
[1770085338532,135.2529,103.61,103.53,10.58268934]
[1770085339333,8.6963,103.59,103.54,10.63795954]
[1770085340035,8.6972,103.58,103.54,10.63795954]
[1770085340537,8.6964,103.59,103.54,10.63795954]
[1770085340834,520.366,103.63,103.54,10.63795954]
[1770085340835,385.14,103.63,103.54,10.63795954]
[1770085341032,400.24939469,103.66,103.58,10.04717562]
[1770085341236,8.691,103.66,103.59,18.74307562]
[1770085342042,135.1987,103.65,103.57,10.04717562]
[1770085342928,8.6938,103.62,103.57,10.04717562]
[1770085343136,135.1987,103.65,103.57,10.04717562]
[1770085344433,8.693,103.63,103.58,10.06677106]
[1770085344636,391.55839469,103.66,103.58,10.06677106]
[1770085345834,385.16,103.66,103.59,10.22352474]
[1770085347435,8.6913,103.65,103.59,18.91982474]
[1770085348240,8.6904,103.67,103.61,10.27001202]
[1770085349436,8.6904,103.67,103.61,18.96451202]
[1770085349932,8.6905,103.66,103.61,10.27001202]
[1770085350341,8.6897,103.67,103.61,18.96461202]
[1770085352444,8.6897,103.67,103.62,10.3574236]
[1770085353946,8.6907,103.66,103.62,10.3574236]
[1770085354242,8.6907,103.66,103.6,19.1445784]
[1770085354640,6.39839469,103.66,103.58,10.4491784]
[1770085356041,8.6922,103.64,103.58,19.1462784]
[1770085357547,141.61059469,103.64,103.58,10.4491784]
[1770085357842,141.61059469,103.64,103.55,10.55389784]
[1770085359352,8.694,103.62,103.56,19.26140621]
[1770085361345,8.6952,103.61,103.56,10.56340621]
[1770085362344,135.2255,103.63,103.56,10.56340621]
[1770085362549,8.6955,103.6,103.56,10.56340621]
[1770085363048,526.69059469,103.64,103.57,10.56200839]
[1770085363244,141.61059469,103.64,103.57,10.56200839]
[1770085363650,520.2882,103.65,103.58,10.56200839]
[1770085363850,135.2082,103.65,103.58,10.56200839]
[1770085365156,8.6936,103.63,103.58,10.56200839]
[1770085365749,520.2882,103.65,103.58,10.56200839]
[1770085365954,8.6942,103.62,103.58,10.56200839]
[1770085366149,520.2882,103.65,103.58,10.56200839]
[1770085366457,8.6922,103.64,103.59,10.60432176]
[1770085366657,385.08,103.65,103.59,10.60432176]
[1770085366858,385.08,103.65,103.59,19.30002176]
[1770085367357,8.6915,103.65,103.6,10.59804286]
[1770085368354,141.56769469,103.68,103.6,10.59804286]
[1770085368555,135.1074,103.72,103.65,10.59804286]
[1770085369160,8.6872,103.7,103.65,10.59804286]
[1770085369357,135.1331,103.7,103.61,10.59583972]
[1770085369860,143.821,103.7,103.62,10.59583972]
[1770085370154,8.6879,103.7,103.62,10.59583972]
[1770085370453,8.688,103.69,103.62,19.28953972]
[1770085374659,8.6891,103.68,103.6,184.59541233]
[1770085374860,8.6891,103.68,103.61,10.75541233]
[1770085375158,8.6896,103.67,103.61,19.44991233]
[1770085375557,8.6896,103.67,103.61,10.75541233]
[1770085377158,8.6885,103.69,103.62,10.7516497]
[1770085377755,8.6885,103.69,103.6,135.2623]
[1770085377756,8.6885,103.69,103.64,10.7516497]
[1770085377964,8.6871,103.7,103.64,10.7516497]
[1770085378364,8.6881,103.69,103.64,10.7516497]
[1770085379558,8.6872,103.7,103.64,10.7516497]
[1770085380268,8.6881,103.69,103.64,10.7516497]
[1770085380768,141.50579469,103.72,103.64,19.4435497]
[1770085381167,8.6888,103.68,103.62,19.46405551]
[1770085381660,8.6888,103.68,103.62,10.77035551]
[1770085383169,8.6897,103.67,103.62,10.77035551]
[1770085384166,8.6905,103.66,103.62,10.77035551]
[1770085384362,270.333,103.68,103.62,10.77035551]
[1770085385463,8.6909,103.66,103.62,10.77035551]
[1770085386372,8.6909,103.66,103.59,10.79167273]
[1770085386373,135.1859,103.66,103.59,10.79167273]
[1770085387270,8.6922,103.64,103.59,10.79167273]
[1770085389275,8.6922,103.64,103.59,19.48787273]
[1770085389476,8.6922,103.64,103.6,10.83113711]
[1770085390774,8.6922,103.64,103.58,192.87352897]
[1770085391074,8.6931,103.63,103.59,10.83652897]
[1770085391279,270.4145,103.65,103.57,10.83652897]
[1770085391968,135.206,103.65,103.57,10.83652897]
[1770085392172,141.60615711,103.64,103.57,10.83652897]
[1770085392672,8.6939,103.62,103.57,10.83652897]
[1770085394178,135.2271,103.63,103.55,19.53469646]
[1770085394477,135.2271,103.63,103.55,10.83509646]
[1770085396280,8.6947,103.61,103.55,19.53469646]
[1770085396777,8.6966,103.59,103.55,10.83509646]
[1770085396977,8.6966,103.59,103.53,10.83413195]
[1770085397882,8.6966,103.59,103.54,10.83413195]
[1770085400384,11.08427865,103.59,103.54,10.83413195]
[1770085401186,8.6966,103.59,103.55,10.83332687]
[1770085403387,11.08317865,103.6,103.56,10.82958145]
[1770085403883,8.6955,103.6,103.56,10.82958145]
[1770085404182,11.08247865,103.61,103.56,10.82958145]
[1770085404582,8.6948,103.61,103.57,10.82958145]
[1770085405078,11.08167865,103.62,103.57,10.82958145]
[1770085405887,2.38767865,103.61,103.57,10.82958145]
[1770085406087,2.38767865,103.6,103.57,10.82958145]
[1770085406790,11.08237865,103.61,103.57,10.82958145]
[1770085407389,2.38767865,103.6,103.57,10.82958145]
[1770085409584,11.08317865,103.6,103.57,10.82958145]
[1770085411988,414.30144298,103.72,103.57,10.82958145]
[1770085412190,2.38767865,103.67,103.62,10.85479559]
[1770085412492,8.688,103.69,103.62,10.85479559]
[1770085412691,135.13,103.71,103.63,10.89063959]
[1770085413688,8.687,103.71,103.63,10.89063959]
[1770085414085,8.687,103.71,103.64,10.89063959]
[1770085415196,6.38399302,103.72,103.64,19.58263959]
[1770085415893,6.38399302,103.72,103.65,10.91590659]
[1770085416696,8.6852,103.73,103.65,19.60700659]
[1770085416896,141.46279302,103.75,103.66,10.83701408]
[1770085417397,8.6839,103.74,103.67,10.83701408]
[1770085420397,8.6851,103.73,103.67,10.83701408]
[1770085420597,135.0818,103.74,103.65,10.78638812]
[1770085420803,6.38399302,103.73,103.65,10.78638812]
[1770085421298,8.6855,103.72,103.66,10.83509371]
[1770085422006,8.6863,103.71,103.64,10.83509371]
[1770085422606,8.6863,103.71,103.64,19.52719371]
[1770085423203,8.6863,103.71,103.65,10.83714838]
[1770085424409,8.6873,103.7,103.65,10.83714838]
[1770085429609,8.688,103.69,103.65,10.83714838]
[1770085429805,141.50729302,103.71,103.63,10.82922757]
[1770085430005,526.42729302,103.71,103.63,10.82922757]
[1770085431208,141.50729302,103.71,103.63,10.82922757]
[1770085431410,8.688,103.69,103.63,10.82922757]
[1770085432405,2.38353154,103.68,103.63,10.82922757]
[1770085437014,11.07243154,103.68,103.63,10.82922757]
[1770085439717,8.6889,103.68,103.63,10.82922757]
[1770085440315,2.38353154,103.7,103.64,10.77332397]
[1770085440512,2.38353154,103.69,103.64,10.77332397]
[1770085441409,2.38353154,103.67,103.64,10.77332397]
[1770085442119,2.38353154,103.67,103.62,19.42066941]
[1770085442321,2.38353154,103.67,103.63,10.72696941]
[1770085443018,11.07313154,103.67,103.63,10.72696941]
[1770085447230,11.07413154,103.66,103.61,19.41029561]
[1770085448022,11.07413154,103.66,103.62,10.71589561]
[1770085448629,8.6906,103.66,103.62,10.71589561]
[1770085449623,2.38353154,103.69,103.63,10.70227213]
[1770085450432,2.38320352,103.68,103.63,10.70227213]
[1770085451334,11.07200352,103.68,103.63,10.70227213]
[1770085453332,11.07200352,103.68,103.64,10.74933387]
[1770085453531,11.07130352,103.69,103.64,10.74933387]
[1770085453832,8.6881,103.69,103.64,10.74933387]
[1770085454027,8.6881,103.69,103.65,10.74933387]
[1770085454831,2.38320352,103.7,103.65,10.74933387]
[1770085455036,11.07040352,103.7,103.66,10.76239849]
[1770085456831,11.06970352,103.71,103.66,10.76239849]
[1770085458840,2.38320352,103.7,103.66,10.76239849]
[1770085460935,11.06970352,103.71,103.66,10.76239849]
[1770085461131,2.38320352,103.7,103.66,10.76239849]
[1770085466046,2.38320352,103.7,103.64,10.77789531]
[1770085466241,2.38320352,103.68,103.64,10.77789531]
[1770085467437,11.07170352,103.69,103.64,10.77789531]
[1770085468342,2.38320352,103.7,103.65,10.78026087]
[1770085469443,2.38320352,103.7,103.66,10.77744385]
[1770085470840,11.06960352,103.71,103.66,10.77744385]
[1770085475249,8.6864,103.71,103.66,10.77744385]
[1770085475548,11.06960352,103.71,103.66,10.77744385]
[1770085478350,2.38320352,103.7,103.66,10.77744385]
[1770085478551,11.07040352,103.7,103.66,10.77744385]
[1770085479152,2.38320352,103.67,103.62,10.75971998]
[1770085479355,2.38320352,103.65,103.62,10.75971998]
[1770085482351,2.38320352,103.67,103.62,10.75971998]
[1770085484444,11.07280352,103.67,103.62,10.75971998]
[1770085485251,11.07210352,103.68,103.62,19.45341998]
[1770085485446,11.07210352,103.68,103.63,10.60120528]
[1770085485854,2.38320352,103.69,103.64,10.60120528]
[1770085486356,8.688,103.69,103.64,10.60120528]
[1770085487058,11.07040352,103.7,103.64,10.60120528]
[1770085489651,11.07040352,103.7,103.65,10.52363405]
[1770085492648,2.38320352,103.71,103.66,10.52155451]
[1770085493051,11.06940352,103.72,103.66,10.52155451]
[1770085493650,11.06940352,103.72,103.67,10.52076776]
[1770085495755,2.38320352,103.72,103.67,10.52076776]
[1770085497260,2.38320352,103.71,103.67,10.52076776]
[1770085499866,11.06870352,103.72,103.67,10.52076776]
[1770085500459,2.38320352,103.72,103.67,10.52076776]
[1770085500666,2.38320352,103.69,103.65,10.59543465]
[1770085501059,2.38320352,103.69,103.63,10.58597464]
[1770085501261,2.38320352,103.67,103.63,10.58597464]
[1770085501461,2.38320352,103.66,103.61,10.58597464]
[1770085501663,11.07380352,103.66,103.61,10.58597464]
[1770085501859,8.6906,103.66,103.61,10.58597464]
[1770085502064,2.38320352,103.65,103.61,10.58597464]
[1770085503869,11.07380352,103.66,103.61,10.58597464]
[1770085504971,8.6897,103.67,103.61,10.58597464]
[1770085505372,8.6897,103.67,103.62,10.5531308]
[1770085507166,8.6906,103.66,103.62,10.5531308]
[1770085508171,8.6913,103.65,103.62,10.5531308]
[1770085508769,11.07350352,103.67,103.62,10.5531308]
[1770085509574,2.38320352,103.66,103.62,10.5531308]
[1770085510867,11.07350352,103.67,103.62,10.5531308]
[1770085511270,2.38320352,103.66,103.62,10.5531308]
[1770085512478,2.38454932,103.66,103.62,10.5531308]
[1770085512872,11.07504932,103.66,103.62,10.5531308]
[1770085513069,2.38454932,103.64,103.6,10.55356276]
[1770085514380,11.07664932,103.64,103.6,10.55356276]
[1770085514581,2.38454932,103.64,103.6,10.55356276]
[1770085514975,2.38454932,103.64,103.58,10.54509791]
[1770085515474,11.07734932,103.64,103.58,10.54509791]
[1770085515674,2.38454932,103.62,103.58,10.54509791]
[1770085516280,2.38454932,103.61,103.58,10.54509791]
[1770085516774,2.38454932,103.63,103.56,10.54713977]
[1770085516980,2.38454932,103.64,103.57,10.54713977]
[1770085517582,11.07734932,103.64,103.58,10.54713977]
[1770085517980,2.38454932,103.64,103.58,10.54713977]
[1770085518279,2.38454932,103.62,103.58,10.54713977]
[1770085519075,11.07904932,103.62,103.58,10.54713977]
[1770085523381,8.6945,103.62,103.58,10.54713977]
[1770085523882,2.38454932,103.64,103.58,10.54713977]
[1770085523883,8.6931,103.63,103.58,10.54713977]
[1770085526186,8.694,103.62,103.58,10.54713977]
[1770085526884,2.38454932,103.61,103.56,10.50464426]
[1770085527089,2.38454932,103.59,103.54,10.50464426]
[1770085527284,2.38454932,103.58,103.54,10.50464426]
[1770085527587,2.38454932,103.6,103.54,10.50464426]
[1770085527987,8.6956,103.6,103.55,10.50464426]
[1770085528785,8.6946,103.61,103.56,10.52222661]
[1770085529088,11.07914932,103.61,103.56,10.52222661]
[1770085531289,8.6946,103.61,103.56,10.52222661]
[1770085534694,11.07914932,103.61,103.56,10.52222661]
[1770085535089,8.694,103.62,103.57,10.48618128]
[1770085535290,2.38454932,103.63,103.57,10.48618128]
[1770085535796,8.694,103.62,103.57,10.48618128]
[1770085536798,11.07854932,103.62,103.57,10.48618128]
[1770085541904,8.6947,103.61,103.57,10.48618128]
[1770085548612,8.6955,103.6,103.57,10.48618128]
[1770085551410,8.6948,103.61,103.57,10.48618128]
[1770085553120,8.6957,103.6,103.57,10.48618128]
[1770085553315,11.08024932,103.6,103.55,10.55822144]
[1770085553516,2.38454932,103.6,103.55,10.55822144]
[1770085554319,8.6964,103.59,103.55,10.55822144]
[1770085555414,11.08024932,103.6,103.56,10.54097699]
[1770085555718,520.4066,103.63,103.56,10.54097699]
[1770085555719,2.38454932,103.62,103.56,10.54097699]
[1770085556120,8.6952,103.61,103.57,10.54097699]
[1770085561020,8.6952,103.61,103.55,19.32120423]
[1770085561216,2.38454932,103.6,103.55,10.62160423]
[1770085561421,2.38454932,103.6,103.53,10.62160423]
[1770085561620,2.38454932,103.61,103.53,13.00615355]
[1770085562417,8.6958,103.6,103.55,10.62160423]
[1770085564022,2.38454932,103.63,103.56,10.62335953]
[1770085564824,8.694,103.62,103.57,10.62934181]
[1770085568426,11.07774932,103.63,103.58,10.6400001]
[1770085568626,2.38454932,103.65,103.58,10.6400001]
[1770085568822,2.38454932,103.65,103.58,13.02454942]
[1770085569018,2.38454932,103.66,103.58,13.02454942]
[1770085569720,11.07574932,103.66,103.59,8.6956]
[1770085569920,11.07574932,103.66,103.6,10.61078836]
[1770085571022,11.07574932,103.66,103.61,10.61069448]
[1770085571229,8.6913,103.65,103.61,10.61069448]
[1770085571531,11.07584932,103.65,103.61,10.61069448]
[1770085571925,11.07664932,103.64,103.59,10.61069448]
[1770085572126,2.38454932,103.62,103.57,10.61069448]
[1770085572625,2.38597969,103.62,103.57,10.61069448]
[1770085572826,2.38597969,103.61,103.57,10.61069448]
[1770085573026,2.38597969,103.61,103.55,10.60163459]
[1770085573027,2.38597969,103.6,103.55,10.60163459]
[1770085573727,11.08157969,103.6,103.55,10.60163459]
[1770085574833,8.6956,103.6,103.55,10.60163459]
[1770085575027,8.6956,103.6,103.56,10.59943845]
[1770085575333,8.6948,103.61,103.56,10.59943845]
[1770085576533,8.6948,103.61,103.57,10.59943845]
[1770085577129,8.6939,103.62,103.57,10.59943845]
[1770085577336,8.6939,103.62,103.58,10.60363733]
[1770085578235,8.6931,103.63,103.58,10.60363733]
[1770085580439,8.6939,103.62,103.58,10.60363733]
[1770085582540,2.38597969,103.63,103.56,10.65549793]
[1770085582541,11.08067969,103.61,103.56,10.65549793]
[1770085582745,2.38597969,103.61,103.56,10.65549793]
[1770085583842,2.38597969,103.6,103.56,10.65549793]
[1770085584141,2.38597969,103.59,103.54,10.65902399]
[1770085585345,11.08237969,103.59,103.54,10.65902399]
[1770085585745,8.6964,103.59,103.54,10.65902399]
[1770085586642,2.38597969,103.62,103.55,13.06015986]
[1770085588248,2.38597969,103.61,103.56,10.70820428]
[1770085588642,2.38597969,103.6,103.54,10.70820428]
[1770085589449,2.38597969,103.59,103.54,10.70820428]
[1770085590650,8.6956,103.6,103.55,10.82146311]
[1770085590944,2.38597969,103.61,103.53,10.83235524]
[1770085590945,2.38597969,103.59,103.53,10.83235524]
[1770085592349,11.08297969,103.59,103.54,10.83235524]
[1770085592544,2.38597969,103.61,103.54,10.83235524]
[1770085592750,2.38597969,103.61,103.54,13.21833493]
[1770085593045,8.6956,103.6,103.55,10.83210354]
[1770085594155,2.38597969,103.6,103.53,10.83210354]
[1770085595453,8.6973,103.58,103.53,10.83210354]
[1770085596850,8.6981,103.57,103.53,10.83210354]
[1770085598654,8.6973,103.58,103.53,10.83210354]
[1770085599956,8.698,103.57,103.53,10.83210354]
[1770085600662,135.2653,103.6,103.53,10.83210354]
[1770085600663,8.699,103.56,103.53,10.83210354]
[1770085602161,8.6981,103.57,103.53,10.83210354]
[1770085602759,8.6981,103.57,103.51,8.703]
[1770085602963,8.6989,103.56,103.51,10.87112937]
[1770085603859,8.6997,103.55,103.51,10.87112937]
[1770085604060,135.3048,103.57,103.49,10.87112937]
[1770085604755,135.3174,103.56,103.49,10.87112937]
[1770085605957,135.3048,103.57,103.49,10.87112937]
[1770085608464,8.7005,103.54,103.49,10.87112937]
[1770085612267,8.6998,103.55,103.49,10.87112937]
[1770085614969,8.6998,103.55,103.5,10.82784091]
[1770085615368,270.6409,103.56,103.48,19.53324091]
[1770085615565,135.3318,103.55,103.48,10.82784091]
[1770085616570,8.702,103.53,103.48,10.82784091]
[1770085616872,2.38938165,103.53,103.46,10.82784091]
[1770085617170,2.38938165,103.53,103.46,13.21722256]
[1770085617472,8.7023,103.52,103.47,10.82792352]
[1770085619070,11.09238165,103.51,103.45,10.82145071]
[1770085619772,8.703,103.51,103.45,10.82145071]
[1770085620371,2.38938165,103.55,103.49,10.82145071]
[1770085620568,137.72018165,103.55,103.49,10.82145071]
[1770085620769,8.7014,103.53,103.49,10.82145071]
[1770085624080,8.7025,103.52,103.47,10.85635408]
[1770085624372,2.38938165,103.53,103.45,10.85635408]
[1770085624579,2.38938165,103.51,103.45,10.85635408]
[1770085626275,8.7039,103.5,103.45,10.85635408]
[1770085626780,2.38938165,103.49,103.45,10.85635408]
[1770085626981,2.38938165,103.49,103.43,10.81379126]
[1770085627176,2.38938165,103.47,103.43,10.81379126]
[1770085628080,2.38938165,103.49,103.43,10.81379126]
[1770085629178,8.7057,103.48,103.43,10.81379126]
[1770085629480,2.38938165,103.49,103.43,10.81379126]
[1770085630281,8.7056,103.48,103.43,19.52329126]
[1770085630573,8.7056,103.48,103.44,10.82137192]
[1770085630780,2.38938165,103.49,103.44,10.82137192]
[1770085631382,2.38938165,103.48,103.44,10.82137192]
[1770085632280,11.09538165,103.48,103.44,10.82137192]
[1770085632477,2.38938165,103.48,103.44,10.82137192]
[1770085632883,11.09508165,103.48,103.44,10.82137192]
[1770085634386,11.09804217,103.48,103.44,10.82137192]
[1770085634886,135.3951,103.5,103.44,10.82137192]
[1770085634887,8.7048,103.49,103.44,10.82137192]
[1770085636289,8.7048,103.49,103.44,19.53027192]
[1770085636489,11.09714217,103.49,103.44,19.53027192]
[1770085636988,11.09714217,103.49,103.45,10.84802287]
[1770085638085,2.39234217,103.48,103.45,10.84802287]
[1770085638390,11.09794217,103.48,103.45,10.84802287]
[1770085639184,2.39234217,103.48,103.45,10.84802287]
[1770085639590,2.39234217,103.46,103.43,10.84717187]
[1770085641094,11.09954217,103.46,103.43,10.84717187]
[1770085642196,11.10044217,103.45,103.41,10.82104769]
[1770085644688,11.10044217,103.45,103.38,137.94284217]
[1770085644689,11.09934217,103.47,103.42,10.8157032]
[1770085646395,11.09934217,103.47,103.43,10.81644056]
[1770085647495,11.09954217,103.46,103.41,19.52774056]
[1770085647897,2.39234217,103.46,103.41,10.81644056]
[1770085648090,8.7081,103.45,103.41,10.81644056]
[1770085648290,2.39234217,103.44,103.41,10.81644056]
[1770085661413,8.7081,103.45,103.41,10.81644056]
[1770085665615,8.7108,103.42,103.37,8.7144]
[1770085665917,2.39234217,103.4,103.36,10.44295635]
[1770085666714,2.39234217,103.38,103.34,10.4413455]
[1770085666916,2.39234217,103.36,103.3,10.4413455]
[1770085667223,2.39234217,103.34,103.27,10.4413455]
[1770085667924,2.39234217,103.32,103.27,10.4413455]
[1770085670721,11.11054217,103.33,103.27,10.4413455]
[1770085670920,2.39234217,103.34,103.28,10.42200702]
[1770085671826,11.10974217,103.34,103.28,10.42200702]
[1770085672924,2.39234217,103.35,103.29,10.44012435]
[1770085673623,2.39234217,103.36,103.29,10.44012435]
[1770085674124,2.39234217,103.35,103.29,10.44012435]
[1770085675326,11.10894217,103.35,103.29,10.44012435]
[1770085675725,2.39234217,103.34,103.29,10.44012435]
[1770085676226,2.39234217,103.33,103.29,10.44012435]
[1770085678130,8.7175,103.34,103.29,10.44012435]
[1770085679729,11.10984217,103.34,103.29,10.44012435]
[1770085681031,8.7175,103.34,103.29,10.44012435]
[1770085682329,135.5178,103.41,103.34,6.17061587]
[1770085682534,2.39234217,103.4,103.34,6.17061587]
[1770085682736,8.7142,103.38,103.34,6.17061587]
[1770085683829,2.39234217,103.4,103.34,6.17061587]
[1770085684428,386.08,103.41,103.34,6.17061587]
[1770085684429,2.39234217,103.41,103.35,6.1391781]
[1770085685032,11.10374217,103.41,103.36,6.1391781]
[1770085686544,8.7114,103.41,103.36,6.1391781]
[1770085689142,135.5421,103.39,103.29,6.08637927]
[1770085689335,141.9742367,103.38,103.29,6.08637927]
[1770085689534,6.4176367,103.38,103.29,6.08637927]
[1770085689738,8.7155,103.37,103.31,6.07647153]
[1770085689936,141.9705367,103.38,103.31,6.07647153]
[1770085691039,8.7152,103.37,103.31,14.79597153]
[1770085691237,135.528,103.4,103.32,6.07647153]
[1770085691636,8.714,103.38,103.33,6.07647153]
[1770085692340,8.7131,103.39,103.34,5.98850536]
[1770085692841,8.7115,103.41,103.35,5.98850536]
[1770085693041,346.76,103.42,103.35,5.98850536]
[1770085693243,482.2613,103.42,103.35,5.98850536]
[1770085694438,8.7124,103.4,103.35,5.98850536]
[1770085694640,135.5132,103.41,103.35,5.98850536]
[1770085694946,135.5299,103.4,103.32,5.99319071]
[1770085695944,8.7141,103.38,103.33,6.17797905]
[1770085696347,521.5332,103.41,103.33,6.17797905]
[1770085696538,386.02,103.41,103.34,6.17797905]
[1770085697441,135.5013,103.42,103.34,6.17797905]
[1770085698246,141.92113585,103.42,103.35,6.17325766]
[1770085698442,141.92113585,103.42,103.34,8.717]
[1770085698647,135.544,103.39,103.31,6.17325766]
[1770085698941,8.7156,103.37,103.32,6.17325766]
[1770085700643,527.94833585,103.4,103.35,6.22551144]
[1770085700644,8.7124,103.4,103.35,6.22551144]
[1770085701047,135.515,103.41,103.35,6.22551144]
[1770085701351,8.7138,103.39,103.35,6.22551144]
[1770085705554,8.7138,103.39,103.33,14.94970781]
[1770085705754,8.7141,103.38,103.33,14.94970781]
[1770085705954,135.515,103.41,103.33,14.94970781]
[1770085706444,135.5013,103.42,103.35,6.23464419]
[1770085707347,385.98,103.43,103.35,14.95104419]
[1770085707553,385.98,103.43,103.36,6.23464419]
[1770085708052,8.7113,103.42,103.36,14.95014419]
[1770085708448,8.7113,103.42,103.37,6.27995782]
[1770085708849,385.98,103.43,103.38,6.27995782]
[1770085708850,8.7098,103.43,103.38,6.27995782]
[1770085709049,135.4513,103.46,103.38,6.27995782]
[1770085709449,521.4313,103.46,103.38,6.27995782]
[1770085710250,135.4596,103.45,103.38,6.27995782]
[1770085711250,135.4403,103.47,103.38,6.27995782]
[1770085711451,521.3803,103.47,103.38,6.27995782]
[1770085711958,521.3803,103.47,103.39,14.99699055]
[1770085712159,521.3803,103.47,103.39,6.28389055]
[1770085712356,385.94,103.46,103.39,6.28389055]
[1770085712854,135.465,103.45,103.36,6.28389055]
[1770085713059,521.405,103.45,103.36,6.28389055]
[1770085713260,8.7098,103.43,103.38,6.28389055]
[1770085715465,8.7107,103.42,103.38,6.28389055]
[1770085719468,8.7115,103.41,103.36,6.25801539]
[1770085722359,8.7107,103.42,103.36,14.97351539]
[1770085722563,8.7107,103.42,103.37,6.25873929]
[1770085724172,385.88,103.44,103.38,6.25844874]
[1770085724173,8.71,103.43,103.38,6.25844874]
[1770085725668,8.7106,103.42,103.38,6.25844874]
[1770085726369,8.7117,103.41,103.36,6.26348836]
[1770085727770,8.7123,103.4,103.36,6.26348836]
[1770085727962,8.7123,103.4,103.33,168.21684289]
[1770085728164,527.79333585,103.41,103.33,14.97484289]
[1770085728570,8.7132,103.39,103.34,6.25684289]
[1770085728766,521.3735,103.41,103.34,6.25684289]
[1770085729966,529.15561705,103.41,103.34,6.25684289]
[1770085730167,529.15561705,103.41,103.33,8.718]
[1770085730364,135.5427,103.39,103.3,6.21521542]